fUSD/lending_fUSD_20250512
["ID","MTS","AMOUNT","RATE_DAILY","PERIOD"]
[360862992,1747078263176,-616.54,0.00013972,2]
[360862993,1747078263186,-1520.7,0.00013972,2]
[360862994,1747078263196,-400.0,0.00013972,2]
[360862995,1747078263208,-400.0,0.00013972,2]
[360862996,1747078263218,-400.0,0.00013972,2]
[360862997,1747078263229,-1540.55,0.00013972,2]
[360862998,1747078263240,-400.0,0.00013972,2]
[360862999,1747078263250,-400.0,0.00013972,2]
[360863000,1747078263261,-460.63,0.00013972,2]
[360863001,1747078263271,-400.0,0.00013972,2]
[360863002,1747078263282,-453.4,0.00013972,2]
[360863003,1747078263292,-485.46,0.00013972,2]
[360863004,1747078263303,-723.4,0.00013972,2]
[360863005,1747078263313,-400.0,0.00013972,2]
[360863006,1747078263323,-544.65,0.00013972,2]
[360863007,1747078263333,-150.0,0.00013976,2]
[360863008,1747078263345,-452.25446923,0.00013978,2]
[360863009,1747078263362,-1586.36655431,0.00014003,2]
[360863010,1747078263372,-150.0,0.00014007,2]
[360863011,1747078263381,-961.01491686,0.00014018,2]
[360863012,1747078263391,-601.9,0.00014026,2]
[360863013,1747078263402,-205.83969576,0.00014026,2]
[360863014,1747078263422,-194.16030424,0.00014026,2]
[360863015,1747078263434,-400.0,0.00014026,2]
[360863016,1747078263445,-193.18,0.00014026,2]
[360863017,1747078263454,-400.0,0.00014026,2]
[360863018,1747078263465,-209.52,0.00014026,2]
[360863019,1747078263475,-221.25927074,0.00014026,2]
[360863020,1747078263485,-292.62,0.00014026,2]
[360863021,1747078263495,-400.0,0.00014026,2]
[360863022,1747078263505,-222.9,0.00014026,2]
[360863023,1747078263515,-400.0,0.00014026,2]
[360863024,1747078263525,-400.0,0.00014026,2]
[360863025,1747078263535,-412.98,0.00014026,2]
[360863026,1747078263546,-400.0,0.00014026,2]
[360863027,1747078263556,-282.03949869,0.00014026,2]
[360863028,1747078263566,-400.0,0.00014026,2]
[360863029,1747078263576,-2570.43262641,0.00014026,2]
[360863030,1747078263941,-400.0,0.00013698,2]
[360863031,1747078263951,-400.0,0.00013698,2]
[360863032,1747078263961,-400.0,0.00013698,2]
[360863033,1747078264019,-400.0,0.00013752,2]
[360863034,1747078264029,-400.0,0.00013752,2]
[360863035,1747078264038,-400.0,0.00013753,2]
[360863036,1747078264048,-150.76,0.00013753,2]
[360863037,1747078264057,-508.13,0.00013753,2]
[360863038,1747078264067,-400.0,0.00013807,2]
[360863039,1747078264078,-400.0,0.00013808,2]
[360863040,1747078264088,-400.0,0.00013808,2]
[360863041,1747078264097,-2386.892,0.00013819,2]
[360863042,1747078264108,-274.99,0.00013862,2]
[360863043,1747078264118,-400.0,0.00013863,2]
[360863044,1747078264127,-392.2,0.00013863,2]
[360863045,1747078264137,-360.18,0.00013917,2]
[360863046,1747078264146,-1200.31737359,0.00014026,2]
[360863047,1747078264160,-400.0,0.00014026,2]
[360863048,1747078264170,-848.71,0.00014026,2]
[360863049,1747078264179,-400.0,0.00014026,2]
[360863050,1747078264190,-571.97,0.00014026,2]
[360863051,1747078264199,-400.0,0.00014026,2]
[360863052,1747078264209,-400.0,0.00014026,2]
[360863053,1747078264219,-500.0,0.00014026,2]
[360863054,1747078264229,-400.0,0.00014026,2]
[360863055,1747078264239,-500.0,0.00014026,2]
[360863056,1747078264249,-165.185822,0.00014027,2]
[360863057,1747078264259,-400.0,0.00014027,2]
[360863058,1747078264269,-400.0,0.00014027,2]
[360863059,1747078264278,-400.0,0.00014027,2]
[360863060,1747078264287,-426.02,0.00014027,2]
[360863061,1747078264296,-400.0,0.00014027,2]
[360863062,1747078264306,-421.09,0.00014027,2]
[360863063,1747078264316,-400.0,0.00014027,2]
[360863064,1747078264326,-400.0,0.00014027,2]
[360863065,1747078264335,-400.0,0.00014027,2]
[360863066,1747078264347,-400.0,0.00014027,2]
[360863067,1747078264357,-400.0,0.00014027,2]
[360863068,1747078264367,-628.01,0.00014027,2]
[360863069,1747078264376,-400.0,0.00014027,2]
[360863070,1747078264387,-400.0,0.00014027,2]
[360863071,1747078264396,-842.57,0.00014027,2]
[360863072,1747078264408,-940.28,0.00014027,2]
[360863073,1747078264418,-406.12,0.00014027,2]
[360863074,1747078264429,-400.0,0.00014027,2]
[360863075,1747078264439,-400.0,0.00014027,2]
[360863076,1747078264448,-400.0,0.00014027,2]
[360863077,1747078264457,-400.0,0.00014027,2]
[360863078,1747078264466,-538.56,0.00014027,2]
[360863079,1747078264475,-400.0,0.00014027,2]
[360863080,1747078264485,-400.0,0.00014027,2]
[360863081,1747078264494,-400.0,0.00014027,2]
[360863082,1747078264503,-400.0,0.00014027,2]
[360863083,1747078264513,-203.30550956,0.00014027,2]
[360863084,1747078264529,-751.62449044,0.00014027,2]
[360863085,1747078264537,-373.73624292,0.00014027,2]
[360863086,1747078264576,-26.26375708,0.00014027,2]
[360863087,1747078264586,-400.0,0.00014027,2]
[360863088,1747078264595,-400.0,0.00014027,2]
[360863089,1747078264604,-400.0,0.00014027,2]
[360863090,1747078264613,-153.47480846,0.00014027,2]
[360863091,1747078264626,-194.83501481,0.00014027,2]
[360863092,1747078264636,-400.0,0.00014027,2]
[360863093,1747078264645,-400.0,0.00014027,2]
[360863094,1747078264659,-400.0,0.00014027,2]
[360863095,1747078264668,-400.0,0.00014027,2]
[360863096,1747078264677,-1.27413499,0.00014027,2]
[360863097,1747078264689,-398.72586501,0.00014027,2]
[360863098,1747078264698,-402.140079,0.00014027,2]
[360863099,1747078264707,-400.0,0.00014027,2]
[360863100,1747078264716,-289.673429,0.00014027,2]
[360863101,1747078264726,-289.673429,0.00014027,2]
[360863102,1747078264735,-400.0,0.00014027,2]
[360863103,1747078264744,-337.71004749,0.00014027,2]
[360863104,1747078264764,-500.0,0.00013807,2]
[360863105,1747078264773,-62.28995251,0.00014027,2]
[360863106,1747078264782,-156.15404716,0.00014027,2]
[360863107,1747078470144,150.0,0.00011836,2]
[360863108,1747078710288,150.0,0.00011264,2]
[360863109,1747078710402,150.0,0.00011653,2]
[360863110,1747078710711,150.0,0.00011812,2]
[360863111,1747078795670,85628.99757686,0.00012015,10]
[360863112,1747078795697,50561.59028576,0.00012015,10]
[360863113,1747078803010,-150.0,0.00012015,2]
[360863114,1747078803050,-50.0,0.00012019,2]
[360863115,1747078812704,-150.0,0.00012019,2]
[360863116,1747078812734,-122.35246577,0.00012023,2]
[360863117,1747078827002,-27.64753423,0.00012023,2]
[360863118,1747078915058,150.0,0.00013699,7]
[360863119,1747078964754,-194.01286359,0.00011986,2]
[360863120,1747078977639,-28.0258496,0.00011986,2]
[360863121,1747079011665,787.88,0.00010206,2]
[360863122,1747079168814,2743.95891346,0.00028,120]
[360863189,1747079431650,-1200.0,0.00012051,2]
[360863191,1747079431660,-500.0,0.00012052,2]
[360863192,1747079431670,-500.0,0.00012052,2]
[360863193,1747079431680,-500.0,0.00012052,2]
[360863194,1747079431691,-500.0,0.00012052,2]
[360863195,1747079431700,-500.0,0.00012052,2]
[360863196,1747079431711,-500.0,0.00012052,2]
[360863197,1747079431725,-500.0,0.00012052,2]
[360863198,1747079431734,-151.01304519,0.00012052,2]
[360863199,1747079431747,-348.98695481,0.00012052,2]
[360863200,1747079431757,-63.85328663,0.00012052,2]
[360863201,1747079431796,-436.14671337,0.00012052,2]
[360863202,1747079431806,-500.0,0.00012052,2]
[360863203,1747079431816,-500.0,0.00012052,2]
[360863204,1747079431825,-500.0,0.00012052,2]
[360863205,1747079431835,-500.0,0.00012052,2]
[360863206,1747079431844,-364.22736072,0.00012052,2]
[360863207,1747079431870,-135.77263928,0.00012052,2]
[360863208,1747079431880,-500.0,0.00012052,2]
[360863209,1747079431889,-500.0,0.00012052,2]
[360863210,1747079431899,-312.59467866,0.00012052,2]
[360863211,1747079431914,-187.40532134,0.00012052,2]
[360863212,1747079431924,-309.00551843,0.00012052,2]
[360863213,1747079431936,-190.99448157,0.00012052,2]
[360863214,1747079431946,-500.0,0.00012052,2]
[360863215,1747079431957,-500.0,0.00012052,2]
[360863216,1747079431966,-500.0,0.00012052,2]
[360863217,1747079431975,-500.0,0.00012052,2]
[360863219,1747079431985,-500.0,0.00012052,2]
[360863221,1747079431994,-500.0,0.00012052,2]
[360863223,1747079432005,-500.0,0.00012052,2]
[360863225,1747079432014,-500.0,0.00012052,2]
[360863227,1747079432024,-477.46736327,0.00012052,2]
[360863229,1747079432036,-22.53263673,0.00012052,2]
[360863231,1747079432045,-439.61335297,0.00012052,2]
[360863233,1747079432055,-336.18199848,0.00012052,2]
[360863235,1747079432067,-163.81800152,0.00012052,2]
[360863237,1747079432076,-410.78199848,0.00012052,2]
[360863239,1747079432087,-89.21800152,0.00012052,2]
[360863242,1747079432098,-500.0,0.00012052,2]
[360863245,1747079432107,-500.0,0.00012052,2]
[360863248,1747079432117,-500.0,0.00012052,2]
[360863251,1747079432126,-500.0,0.00012052,2]
[360863254,1747079432136,-500.0,0.00012052,2]
[360863256,1747079432145,-500.0,0.00012052,2]
[360863258,1747079432155,-428.59226498,0.00012052,2]
[360863366,1747079437617,-71.40773502,0.00012052,2]
[360863367,1747079437627,-500.0,0.00012052,2]
[360863368,1747079437637,-500.0,0.00012052,2]
[360863369,1747079437646,-500.0,0.00012052,2]
[360863370,1747079437655,-405.04676449,0.00012052,2]
[360863371,1747079437670,-94.95323551,0.00012052,2]
[360863372,1747079437679,-295.28646449,0.00012052,2]
[360863373,1747079437691,-204.71353551,0.00012052,2]
[360863374,1747079437701,-500.0,0.00012052,2]
[360863375,1747079437710,-500.0,0.00012052,2]
[360863376,1747079437722,-500.0,0.00012052,2]
[360863377,1747079437733,-500.0,0.00012052,2]
[360863378,1747079437743,-500.0,0.00012052,2]
[360863379,1747079437752,-600.0,0.00012052,2]
[360863380,1747079437762,-500.0,0.00012052,2]
[360863381,1747079437772,-200.0,0.00012052,2]
[360863382,1747079437782,-657.8,0.00012053,2]
[360863383,1747079437792,-200.0,0.00012063,2]
[360863384,1747079437803,-637.1,0.00012083,2]
[360863385,1747079437813,-389.42,0.00012095,2]
[360863386,1747079437823,-181.04,0.000121,2]
[360863387,1747079437833,-882.94,0.00012103,2]
[360863388,1747079437842,-9721.49,0.00012108,2]
[360863389,1747079437852,-3450.93,0.00012116,2]
[360863390,1747079437862,-1100.01,0.00012138,2]
[360863391,1747079437871,-361.6,0.00012165,2]
[360863392,1747079437881,-568.94,0.00012172,2]
[360863393,1747079437891,-1000.0,0.00012313,2]
[360863394,1747079437901,-934.87947836,0.00012452,2]
[360863395,1747079437917,-65.12052164,0.00012452,2]
[360863396,1747079437927,-595.18911594,0.0001247,2]
[360863397,1747079437945,-192.69088406,0.0001247,2]
[360863398,1747079437955,-166.23,0.00012712,2]
[360863399,1747079437964,-457.29,0.000128,2]
[360863400,1747079437974,-457.29,0.000128,2]
[360863401,1747079437984,-128.8083649,0.000128,2]
[360863402,1747079437995,-328.4816351,0.000128,2]
[360863404,1747079438005,-457.29,0.000128,2]
[360863405,1747079438014,-213.65801509,0.00012841,2]
[360863406,1747079438025,-186.76198491,0.00012841,2]
[360863408,1747079438034,-457.29,0.00012841,2]
[360863410,1747079438044,-160.25952905,0.00012941,2]
[360863411,1747079438055,-642.3496034,0.00012941,2]
[360863413,1747079438067,-818.15086755,0.00012941,2]
[360863414,1747079438076,-1601.59999997,0.00012957,2]
[360863415,1747079438086,-500.0,0.00013096,2]
[360863416,1747079438095,-137.87951238,0.00013099,2]
[360863448,1747079439848,-862.12048762,0.00013099,2]
[360863449,1747079439860,-197.54912088,0.00013144,2]
[360863450,1747079439870,-207.4,0.00013144,2]
[360863451,1747079439880,-668.65185757,0.00013144,2]
[360863452,1747079439890,-150.0,0.00013233,2]
[360863453,1747079439899,-330.94,0.00013233,2]
[360863454,1747079439909,-150.0,0.00013233,2]
[360863455,1747079439919,-452.54,0.00013233,2]
[360863456,1747079439929,-152.55,0.00013233,2]
[360863457,1747079439940,-705.44,0.00013233,2]
[360863458,1747079439955,-200.0,0.0001325,2]
[360863459,1747079439968,-200.0,0.0001325,2]
[360863460,1747079439983,-1680.0,0.00013256,2]
[360863461,1747079439996,-200.0,0.00013257,2]
[360863462,1747079440013,-150.0,0.00013391,2]
[360863463,1747079440030,-150.0,0.00013458,2]
[360863464,1747079440044,-657.8,0.00013559,2]
[360863465,1747079440054,-1017.04597859,0.00013573,2]
[360863466,1747079440064,-162.02855191,0.00013598,2]
[360863467,1747079440074,-186.06350692,0.00013598,2]
[360863468,1747079440084,-807.92861729,0.00013598,2]
[360863469,1747079440095,-13225.02849559,0.00013598,2]
[360863470,1747079440114,-5307.03333796,0.00013598,2]
[360863471,1747079440128,-18279.08954269,0.00013598,2]
[360863472,1747079440143,-305.92274343,0.00013598,2]
[360863473,1747079440154,-17669.58656304,0.00013598,2]
[360863474,1747079440164,-5000.0,0.00013598,2]
[360863475,1747079440174,-264.0592,0.00013598,2]
[360863476,1747079440183,-62971.70862043,0.00013671,2]
[360863477,1747079440194,-434.15677188,0.00013671,2]
[360863479,1747079440211,-5162.8435388,0.00013671,2]
[360863480,1747079440220,-504.83383511,0.00013673,2]
[360863482,1747079440230,-500.0,0.00013673,2]
[360863483,1747079440241,-500.0,0.00013673,2]
[360863484,1747079440251,-357.96705358,0.00013692,2]
[360863485,1747079440260,-167.453208,0.00013698,2]
[360863486,1747079440270,-196.371394,0.00013698,2]
[360863487,1747079440289,-400.0,0.00013698,2]
[360863488,1747079440300,-400.0,0.00013698,2]
[360863489,1747079440309,-450.0,0.00013698,2]
[360863490,1747079440319,-400.0,0.00013698,2]
[360863492,1747079440328,-400.0,0.00013698,2]
[360863493,1747079440338,-549.18847323,0.00013698,2]
[360863495,1747079440349,-400.0,0.00013698,2]
[360863497,1747079440361,-400.0,0.00013698,2]
[360863498,1747079440370,-400.0,0.00013698,2]
[360863500,1747079440380,-450.0,0.00013698,2]
[360863501,1747079440390,-450.0,0.00013698,2]
[360863502,1747079440400,-450.0,0.00013698,2]
[360863503,1747079440410,-450.0,0.00013698,2]
[360863504,1747079440421,-450.0,0.00013698,2]
[360863505,1747079440431,-450.0,0.00013698,2]
[360863506,1747079440440,-450.0,0.00013698,2]
[360863507,1747079440450,-450.0,0.00013698,2]
[360863508,1747079440459,-450.0,0.00013698,2]
[360863509,1747079440470,-450.0,0.00013698,2]
[360863510,1747079440480,-450.0,0.00013698,2]
[360863511,1747079440489,-450.0,0.00013698,2]
[360863512,1747079440499,-400.0,0.00013698,2]
[360863513,1747079440509,-450.0,0.00013698,2]
[360863514,1747079440519,-450.0,0.00013698,2]
[360863515,1747079440529,-450.0,0.00013698,2]
[360863516,1747079440539,-330.0,0.00013698,2]
[360863517,1747079440548,-450.0,0.00013698,2]
[360863518,1747079440559,-450.0,0.00013698,2]
[360863519,1747079440569,-450.0,0.00013698,2]
[360863520,1747079440579,-450.0,0.00013698,2]
[360863521,1747079440589,-400.0,0.00013698,2]
[360863522,1747079440599,-400.0,0.00013698,2]
[360863523,1747079440611,-231.31513343,0.00013698,2]
[360863524,1747079440621,-416.05873115,0.00013698,2]
[360863525,1747079440630,-450.0,0.00013698,2]
[360863526,1747079440640,-450.0,0.00013698,2]
[360863527,1747079440649,-450.0,0.00013698,2]
[360863528,1747079440659,-450.0,0.00013698,2]
[360863529,1747079440669,-164.79058077,0.00013698,2]
[360863530,1747079440678,-253.5071584,0.00013698,2]
[360863531,1747079440688,-450.0,0.00013698,2]
[360863532,1747079440698,-450.0,0.00013698,2]
[360863533,1747079440708,-518.59807257,0.00013698,2]
[360863534,1747079440720,-293.29435888,0.00013698,2]
[360863535,1747079440729,-450.0,0.00013698,2]
[360863536,1747079440739,-450.0,0.00013698,2]
[360863537,1747079440749,-450.0,0.00013698,2]
[360863538,1747079440758,-450.0,0.00013698,2]
[360863539,1747079440768,-450.0,0.00013698,2]
[360863540,1747079440777,-450.0,0.00013698,2]
[360863541,1747079440788,-306.49020611,0.00013698,2]
[360863542,1747079440799,-450.0,0.00013698,2]
[360863543,1747079440809,-450.0,0.00013698,2]
[360863544,1747079440819,-400.0,0.00013698,2]
[360863545,1747079440828,-470.0,0.00013698,2]
[360863546,1747079440838,-450.0,0.00013698,2]
[360863547,1747079440849,-450.0,0.00013698,2]
[360863548,1747079440861,-450.0,0.00013698,2]
[360863549,1747079440870,-450.0,0.00013698,2]
[360863550,1747079440880,-450.0,0.00013698,2]
[360863551,1747079440890,-450.0,0.00013698,2]
[360863552,1747079440900,-363.00050792,0.00013698,2]
[360863553,1747079440911,-470.0,0.00013698,2]
[360863554,1747079440920,-400.0,0.00013698,2]
[360863555,1747079440930,-400.0,0.00013698,2]
[360863556,1747079440939,-330.95448972,0.00013698,2]
[360863557,1747079440949,-1000.0,0.00013698,2]
[360863558,1747079440959,-450.0,0.00013698,2]
[360863559,1747079440968,-500.0,0.00013698,2]
[360863560,1747079440978,-450.0,0.00013698,2]
[360863561,1747079440988,-463.33140953,0.00013698,2]
[360863562,1747079440998,-129.85148126,0.00013698,2]
[360863569,1747079442682,-370.14851874,0.00013698,2]
[360863571,1747079442691,-17.74048122,0.00013698,2]
[360863572,1747079442703,-252.3807417,0.00013698,2]
[360863573,1747079442715,-179.87877708,0.00013698,2]
[360863574,1747079442728,-450.0,0.00013698,2]
[360863575,1747079442738,-4.40032909,0.00013698,2]
[360863577,1747079443174,-335.6599995,0.00013698,2]
[360863578,1747079443186,-109.93967141,0.00013698,2]
[360863579,1747079443195,-450.0,0.00013698,2]
[360863581,1747079443205,-450.0,0.00013698,2]
[360863582,1747079443214,-201.03823893,0.00013698,2]
[360863585,1747079443226,-248.96176107,0.00013698,2]
[360863587,1747079443235,-264.58559893,0.00013698,2]
[360863589,1747079443260,-235.41440107,0.00013698,2]
[360863590,1747079443269,-450.0,0.00013698,2]
[360863591,1747079443279,-400.0,0.00013698,2]
[360863592,1747079443288,-400.0,0.00013698,2]
[360863593,1747079443298,-450.0,0.00013698,2]
[360863594,1747079443307,-450.0,0.00013698,2]
[360863595,1747079443316,-400.69343317,0.00013698,2]
[360863596,1747079443326,-250.27920839,0.00013698,2]
[360863597,1747079443336,-450.0,0.00013698,2]
[360863598,1747079443345,-243.83546433,0.00013698,2]
[360863601,1747079445630,-206.16453567,0.00013698,2]
[360863602,1747079445639,-336.68546433,0.00013698,2]
[360863603,1747079445683,-113.31453567,0.00013698,2]
[360863604,1747079445692,-468.01,0.00013698,2]
[360863605,1747079445702,-341.17764193,0.00013698,2]
[360863606,1747079445712,-450.0,0.00013698,2]
[360863607,1747079445723,-450.0,0.00013698,2]
[360863608,1747079445733,-450.0,0.00013698,2]
[360863609,1747079445743,-526.28847236,0.00013698,2]
[360863610,1747079445752,-508.96,0.00013698,2]
[360863611,1747079445762,-400.0,0.00013698,2]
[360863612,1747079445773,-400.0,0.00013698,2]
[360863613,1747079445783,-500.0,0.00013698,2]
[360863614,1747079445793,-400.0,0.00013698,2]
[360863615,1747079445805,-450.0,0.00013698,2]
[360863616,1747079445815,-400.0,0.00013698,2]
[360863617,1747079445825,-400.0,0.00013698,2]
[360863618,1747079445834,-400.0,0.00013698,2]
[360863619,1747079445844,-643.36,0.00013698,2]
[360863620,1747079445854,-400.0,0.00013698,2]
[360863621,1747079445865,-450.0,0.00013698,2]
[360863622,1747079445875,-450.0,0.00013698,2]
[360863623,1747079445885,-450.0,0.00013698,2]
[360863624,1747079445896,-450.0,0.00013698,2]
[360863625,1747079445906,-400.0,0.00013698,2]
[360863626,1747079445915,-237.42,0.00013698,2]
[360863627,1747079445925,-460.63,0.00013698,2]
[360863628,1747079445935,-779.64,0.00013698,2]
[360863629,1747079445944,-450.0,0.00013698,2]
[360863630,1747079445954,-450.0,0.00013698,2]
[360863631,1747079445963,-400.0,0.00013698,2]
[360863632,1747079445973,-470.0,0.00013698,2]
[360863633,1747079445982,-400.0,0.00013698,2]
[360863634,1747079445992,-400.0,0.00013698,2]
[360863635,1747079446001,-676.41,0.00013698,2]
[360863636,1747079446011,-400.0,0.00013698,2]
[360863637,1747079446021,-400.0,0.00013698,2]
[360863638,1747079446031,-523.11,0.00013698,2]
[360863639,1747079446040,-400.0,0.00013698,2]
[360863640,1747079446050,-450.0,0.00013698,2]
[360863641,1747079446059,-400.0,0.00013698,2]
[360863642,1747079446069,-400.0,0.00013698,2]
[360863643,1747079446080,-400.0,0.00013698,2]
[360863644,1747079446095,-400.0,0.00013698,2]
[360863645,1747079446114,-400.0,0.00013698,2]
[360863647,1747079446127,-531.42826194,0.00013698,2]
[360863648,1747079446136,-450.0,0.00013698,2]
[360863649,1747079446147,-400.0,0.00013698,2]
[360863650,1747079446158,-450.0,0.00013698,2]
[360863651,1747079446168,-400.0,0.00013698,2]
[360863652,1747079446177,-400.0,0.00013698,2]
[360863653,1747079446187,-400.0,0.00013698,2]
[360863654,1747079446197,-400.0,0.00013698,2]
[360863655,1747079446206,-446.99738245,0.00013698,2]
[360863656,1747079446215,-400.0,0.00013698,2]
[360863657,1747079446225,-400.0,0.00013698,2]
[360863659,1747079446234,-450.0,0.00013698,2]
[360863660,1747079446243,-400.0,0.00013698,2]
[360863661,1747079446252,-400.0,0.00013698,2]
[360863662,1747079446261,-400.0,0.00013698,2]
[360863663,1747079446271,-400.0,0.00013698,2]
[360863664,1747079446280,-400.0,0.00013698,2]
[360863665,1747079446289,-400.0,0.00013698,2]
[360863666,1747079446300,-400.0,0.00013698,2]
[360863667,1747079446309,-400.0,0.00013698,2]
[360863668,1747079446319,-400.0,0.00013698,2]
[360863669,1747079446329,-450.0,0.00013698,2]
[360863670,1747079446338,-400.0,0.00013698,2]
[360863671,1747079446351,-400.0,0.00013698,2]
[360863672,1747079446360,-400.0,0.00013698,2]
[360863673,1747079446370,-400.0,0.00013698,2]
[360863674,1747079446379,-450.0,0.00013698,2]
[360863675,1747079446388,-450.0,0.00013698,2]
[360863676,1747079446397,-450.0,0.00013698,2]
[360863677,1747079446408,-450.0,0.00013698,2]
[360863678,1747079446417,-400.0,0.00013698,2]
[360863679,1747079446427,-400.0,0.00013698,2]
[360863680,1747079446437,-400.0,0.00013698,2]
[360863681,1747079446447,-400.0,0.00013698,2]
[360863682,1747079446456,-400.0,0.00013698,2]
[360863683,1747079446466,-2000.0,0.00013698,2]
[360863684,1747079446475,-400.0,0.00013698,2]
[360863685,1747079446484,-400.0,0.00013698,2]
[360863686,1747079446493,-491.17,0.00013698,2]
[360863687,1747079446501,-400.0,0.00013698,2]
[360863688,1747079446511,-400.0,0.00013698,2]
[360863689,1747079446520,-400.0,0.00013698,2]
[360863690,1747079446529,-400.0,0.00013698,2]
[360863691,1747079446538,-400.0,0.00013698,2]
[360863692,1747079446547,-357.11670611,0.00013698,2]
[360863693,1747079446556,-400.0,0.00013698,2]
[360863694,1747079446565,-450.0,0.00013698,2]
[360863695,1747079446574,-400.0,0.00013698,2]
[360863696,1747079446583,-400.0,0.00013698,2]
[360863697,1747079446593,-450.0,0.00013698,2]
[360863698,1747079446602,-450.0,0.00013698,2]
[360863699,1747079446612,-450.0,0.00013698,2]
[360863700,1747079446622,-400.0,0.00013698,2]
[360863701,1747079446631,-450.0,0.00013698,2]
[360863702,1747079446640,-495.24,0.00013698,2]
[360863703,1747079446649,-400.0,0.00013698,2]
[360863704,1747079446659,-400.0,0.00013698,2]
[360863705,1747079446667,-400.3142755,0.00013698,2]
[360863706,1747079446676,-400.0,0.00013698,2]
[360863707,1747079446685,-400.0,0.00013698,2]
[360863708,1747079446694,-450.0,0.00013698,2]
[360863709,1747079446703,-400.0,0.00013698,2]
[360863710,1747079446712,-400.0,0.00013698,2]
[360863711,1747079446724,-400.0,0.00013698,2]
[360863712,1747079446732,-366.07882686,0.00013698,2]
[360863713,1747079446748,-33.92117314,0.00013698,2]
[360863714,1747079446757,-400.0,0.00013698,2]
[360863715,1747079446767,-400.0,0.00013698,2]
[360863716,1747079446776,-486.92861982,0.00013698,2]
[360863717,1747079446785,-400.0,0.00013698,2]
[360863718,1747079446795,-400.0,0.00013698,2]
[360863719,1747079446804,-400.0,0.00013698,2]
[360863720,1747079446814,-450.0,0.00013698,2]
[360863721,1747079446823,-450.0,0.00013698,2]
[360863722,1747079446833,-450.0,0.00013698,2]
[360863723,1747079446843,-450.0,0.00013698,2]
[360863724,1747079446852,-450.0,0.00013698,2]
[360863725,1747079446861,-450.0,0.00013698,2]
[360863726,1747079446871,-354.43552343,0.00013698,2]
[360863727,1747079446881,-400.0,0.00013698,2]
[360863728,1747079446891,-450.0,0.00013698,2]
[360863729,1747079446900,-450.0,0.00013698,2]
[360863730,1747079446910,-400.0,0.00013698,2]
[360863731,1747079446919,-400.0,0.00013698,2]
[360863732,1747079446929,-450.0,0.00013698,2]
[360863733,1747079446938,-450.0,0.00013698,2]
[360863734,1747079446947,-400.0,0.00013698,2]
[360863735,1747079446956,-400.0,0.00013698,2]
[360863736,1747079446965,-480.44,0.00013698,2]
[360863737,1747079446974,-400.0,0.00013698,2]
[360863738,1747079446983,-294.46186168,0.00013698,2]
[360863739,1747079446992,-400.0,0.00013698,2]
[360863740,1747079447002,-400.0,0.00013698,2]
[360863741,1747079447012,-450.0,0.00013698,2]
[360863742,1747079447022,-400.0,0.00013698,2]
[360863743,1747079447031,-450.0,0.00013698,2]
[360863744,1747079447040,-400.0,0.00013698,2]
[360863745,1747079447049,-400.0,0.00013698,2]
[360863746,1747079447059,-400.0,0.00013698,2]